[Event "Titled Tuesday Blitz April 25 Early 2023"]
[White "Vestby-Ellingsen, Mads"]
[Black "Weetik, Vjacheslav"]
[WhiteFideId "1520857"]
[BlackFideId "4153472"]
[WhiteElo "2246"]
[BlackElo "2469"]
[Result "0-1"]
[Round "11"]
[TimeControl "180+2"]
[Date "2023.04.25"]
[WhiteClock "0:00:03"]
[BlackClock "0:00:10"]

1. d4 {[%clk 0:03:00]}  Nf6 {[%clk 0:03:00]} 2. Bf4 {[%clk 0:02:59]}  d5 {[%clk 0:02:54]} 3. e3 {[%clk 0:02:59]}  e6 {[%clk 0:02:54]} 4. g4 {[%clk 0:02:58]}  Bd6 {[%clk 0:02:48]} 5. g5 {[%clk 0:02:57]}  Ne4 {[%clk 0:02:44]} 6. h4 {[%clk 0:02:46]}  c5 {[%clk 0:02:34]} 7. Nf3 {[%clk 0:02:30]}  Bxf4 {[%clk 0:02:32]} 8. exf4 {[%clk 0:02:30]}  Qb6 {[%clk 0:02:32]} 9. b3 {[%clk 0:02:18]}  Nc6 {[%clk 0:02:17]} 10. c3 {[%clk 0:01:59]}  O-O {[%clk 0:02:09]} 11. dxc5 {[%clk 0:01:53]}  Qxc5 {[%clk 0:02:08]} 12. Qc2 {[%clk 0:01:52]}  f6 {[%clk 0:02:03]} 13. Bd3 {[%clk 0:01:50]}  fxg5 {[%clk 0:02:02]} 14. Nxg5 {[%clk 0:01:07]}  Rxf4 {[%clk 0:01:54]} 15. Nxe4 {[%clk 0:01:03]}  dxe4 {[%clk 0:01:53]} 16. Bxe4 {[%clk 0:01:04]}  Qe5 {[%clk 0:01:23]} 17. Nd2 {[%clk 0:00:54]}  Nb4 {[%clk 0:01:23]} 18. cxb4 {[%clk 0:00:55]}  Qxa1+ {[%clk 0:01:22]} 19. Ke2 {[%clk 0:00:53]}  Qd4 {[%clk 0:01:05]} 20. f3 {[%clk 0:00:41]}  Bd7 {[%clk 0:01:04]} 21. Qd3 {[%clk 0:00:24]}  Qxd3+ {[%clk 0:00:45]} 22. Kxd3 {[%clk 0:00:21]}  Bb5+ {[%clk 0:00:44]} 23. Ke3 {[%clk 0:00:20]}  Rf7 {[%clk 0:00:44]} 24. Rc1 {[%clk 0:00:17]}  Rd8 {[%clk 0:00:45]} 25. Rc5 {[%clk 0:00:15]}  Be8 {[%clk 0:00:37]} 26. Nc4 {[%clk 0:00:15]}  b6 {[%clk 0:00:35]} 27. Rg5 {[%clk 0:00:14]}  Rc7 {[%clk 0:00:30]} 28. h5 {[%clk 0:00:06]}  h6 {[%clk 0:00:28]} 29. Re5 {[%clk 0:00:04]}  Kf7 {[%clk 0:00:27]} 30. a4 {[%clk 0:00:02]}  Kf6 {[%clk 0:00:27]} 31. f4 {[%clk 0:00:02]}  Bc6 {[%clk 0:00:14]} 32. f5 {[%clk 0:00:02]}  exf5 {[%clk 0:00:12]} 33. Rxf5+ {[%clk 0:00:02]}  Ke7 {[%clk 0:00:13]} 34. Re5+ {[%clk 0:00:02]}  Kf8 {[%clk 0:00:12]} 35. Bg6 {[%clk 0:00:02]}  Re7 {[%clk 0:00:12]} 36. Rxe7 {[%clk 0:00:02]}  Kxe7 {[%clk 0:00:11]} 37. b5 {[%clk 0:00:02]}  Bd5 {[%clk 0:00:12]} 38. Ne5 {[%clk 0:00:02]}  Kd6 {[%clk 0:00:10]} 39. Nd3 {[%clk 0:00:02]}  Bxb3 {[%clk 0:00:10]} 40. Nb4 {[%clk 0:00:01]}  Bxa4 {[%clk 0:00:09]} 41. Nc6 {[%clk 0:00:01]}  Ra8 {[%clk 0:00:10]} 42. Bd3 {[%clk 0:00:01]}  a6 {[%clk 0:00:09]} 43. Nd4 {[%clk 0:00:01]}  Bxb5 {[%clk 0:00:09]} 44. Nf5+ {[%clk 0:00:01]}  Ke5 {[%clk 0:00:09]} 45. Bc2 {[%clk 0:00:02]}  Ra7 {[%clk 0:00:09]} 46. Bb1 {[%clk 0:00:01]}  a5 {[%clk 0:00:09]} 47. Nd4 {[%clk 0:00:01]}  Bd7 {[%clk 0:00:09]} 48. Nf3+ {[%clk 0:00:02]}  Kf6 {[%clk 0:00:09]} 49. Kd4 {[%clk 0:00:02]}  a4 {[%clk 0:00:09]} 50. Ne5 {[%clk 0:00:02]}  Be6 {[%clk 0:00:10]} 51. Nc6 {[%clk 0:00:02]}  Ra8 {[%clk 0:00:08]} 52. Nb4 {[%clk 0:00:02]}  a3 {[%clk 0:00:08]} 53. Nc2 {[%clk 0:00:01]}  a2 {[%clk 0:00:08]} 54. Bxa2 {[%clk 0:00:02]}  Rxa2 {[%clk 0:00:09]} 55. Nb4 {[%clk 0:00:02]}  Ra4 {[%clk 0:00:09]} 56. Kc3 {[%clk 0:00:02]}  Rxb4 {[%clk 0:00:09]} 57. Kxb4 {[%clk 0:00:03]}  Kg5 {[%clk 0:00:10]} 0-1


[Site "https://www.chess.com"]

[Event "Titled Tuesday Blitz April 25 Early 2023"]
[White "Prohaszka, Peter"]
[Black "Shaik Sumer Arsh"]
[WhiteFideId "726265"]
[BlackFideId "45020000"]
[WhiteElo "2626"]
[BlackElo "2350"]
[Result "1-0"]
[Round "11"]
[TimeControl "180+2"]
[Date "2023.04.25"]
[WhiteClock "0:00:05"]
[BlackClock "0:00:03"]

1. d4 {[%clk 0:02:52]}  Nf6 {[%clk 0:02:59]} 2. Bf4 {[%clk 0:02:51]}  d5 {[%clk 0:02:59]} 3. c3 {[%clk 0:02:50]}  c5 {[%clk 0:02:58]} 4. e3 {[%clk 0:02:50]}  Nc6 {[%clk 0:02:58]} 5. Nd2 {[%clk 0:02:44]}  e6 {[%clk 0:02:54]} 6. Bd3 {[%clk 0:02:41]}  Bd6 {[%clk 0:02:54]} 7. Bxd6 {[%clk 0:02:41]}  Qxd6 {[%clk 0:02:55]} 8. f4 {[%clk 0:02:42]}  cxd4 {[%clk 0:02:53]} 9. cxd4 {[%clk 0:02:43]}  Bd7 {[%clk 0:02:51]} 10. a3 {[%clk 0:02:40]}  O-O {[%clk 0:02:40]} 11. Ngf3 {[%clk 0:02:39]}  Ne7 {[%clk 0:02:29]} 12. Ne5 {[%clk 0:02:38]}  a6 {[%clk 0:02:25]} 13. a4 {[%clk 0:02:18]}  Nc6 {[%clk 0:02:14]} 14. O-O {[%clk 0:02:18]}  Rfc8 {[%clk 0:02:08]} 15. Rf3 {[%clk 0:02:16]}  Be8 {[%clk 0:02:07]} 16. Rh3 {[%clk 0:02:16]}  g6 {[%clk 0:02:01]} 17. Qe1 {[%clk 0:01:59]}  Nb4 {[%clk 0:01:53]} 18. Qh4 {[%clk 0:01:59]}  Nxd3 {[%clk 0:01:46]} 19. Qxf6 {[%clk 0:01:44]}  Nxe5 {[%clk 0:01:45]} 20. fxe5 {[%clk 0:01:44]}  Qb4 {[%clk 0:01:28]} 21. Nf3 {[%clk 0:01:40]}  Qxb2 {[%clk 0:01:29]} 22. Rf1 {[%clk 0:01:40]}  Rc1 {[%clk 0:01:29]} 23. Ng5 {[%clk 0:01:31]}  Rxf1+ {[%clk 0:01:28]} 24. Qxf1 {[%clk 0:01:20]}  h5 {[%clk 0:00:50]} 25. Rf3 {[%clk 0:00:56]}  Rc8 {[%clk 0:00:47]} 26. Rxf7 {[%clk 0:00:28]}  Rc1 {[%clk 0:00:35]} 27. Rf8+ {[%clk 0:00:29]}  Kg7 {[%clk 0:00:35]} 28. Nxe6+ {[%clk 0:00:27]}  Kh7 {[%clk 0:00:36]} 29. Rxe8 {[%clk 0:00:24]}  Rxf1+ {[%clk 0:00:22]} 30. Kxf1 {[%clk 0:00:25]}  Qa1+ {[%clk 0:00:22]} 31. Kf2 {[%clk 0:00:24]}  Qa2+ {[%clk 0:00:19]} 32. Kf3 {[%clk 0:00:13]}  Qxa4 {[%clk 0:00:19]} 33. Re7+ {[%clk 0:00:13]}  Kh6 {[%clk 0:00:16]} 34. h4 {[%clk 0:00:13]}  Qd1+ {[%clk 0:00:15]} 35. Kf2 {[%clk 0:00:11]}  Qd2+ {[%clk 0:00:14]} 36. Kf3 {[%clk 0:00:09]}  Qd1+ {[%clk 0:00:15]} 37. Kf2 {[%clk 0:00:10]}  Qg4 {[%clk 0:00:12]} 38. g3 {[%clk 0:00:06]}  Qf5+ {[%clk 0:00:12]} 39. Kg2 {[%clk 0:00:04]}  Qc2+ {[%clk 0:00:11]} 40. Kf3 {[%clk 0:00:03]}  Qd1+ {[%clk 0:00:11]} 41. Kf2 {[%clk 0:00:03]}  g5 {[%clk 0:00:11]} 42. Nxg5 {[%clk 0:00:01]}  Qd2+ {[%clk 0:00:10]} 43. Kf3 {[%clk 0:00:02]}  Qd1+ {[%clk 0:00:10]} 44. Kf4 {[%clk 0:00:01]}  Qf1+ {[%clk 0:00:10]} 45. Nf3 {[%clk 0:00:02]}  a5 {[%clk 0:00:08]} 46. Rxb7 {[%clk 0:00:02]}  a4 {[%clk 0:00:09]} 47. Rb6+ {[%clk 0:00:02]}  Kg7 {[%clk 0:00:09]} 48. Rb7+ {[%clk 0:00:02]}  Kf8 {[%clk 0:00:09]} 49. Ra7 {[%clk 0:00:03]}  Qd1 {[%clk 0:00:08]} 50. e6 {[%clk 0:00:03]}  Qb3 {[%clk 0:00:08]} 51. Ne5 {[%clk 0:00:03]}  Ke8 {[%clk 0:00:07]} 52. Nc6 {[%clk 0:00:03]}  Kf8 {[%clk 0:00:04]} 53. Ra8+ {[%clk 0:00:03]}  Kg7 {[%clk 0:00:05]} 54. e7 {[%clk 0:00:03]}  Qd1 {[%clk 0:00:03]} 55. e8=Q {[%clk 0:00:04]}  Qg4+ {[%clk 0:00:02]} 56. Ke5 {[%clk 0:00:04]}  Qe4+ {[%clk 0:00:03]} 57. Kd6 {[%clk 0:00:05]}  Qxe8 {[%clk 0:00:03]} 58. Rxe8 {[%clk 0:00:05]} 1-0


[Site "https://www.chess.com"]

[Event "Titled Tuesday Blitz April 25 Early 2023"]
[White "Bryant, John Daniel"]
[Black "Staudenhocker43"]
[WhiteFideId "2031280"]
[WhiteElo "2455"]
[BlackElo "2493"]
[Result "0-1"]
[Round "11"]
[TimeControl "180+2"]
[Date "2023.04.25"]
[WhiteClock "0:00:01"]
[BlackClock "0:00:32"]

1. e4 {[%clk 0:03:00]}  c5 {[%clk 0:02:58]} 2. c3 {[%clk 0:03:00]}  d5 {[%clk 0:02:58]} 3. exd5 {[%clk 0:03:01]}  Qxd5 {[%clk 0:02:59]} 4. d4 {[%clk 0:03:01]}  g6 {[%clk 0:02:59]} 5. Nf3 {[%clk 0:03:00]}  Bg7 {[%clk 0:03:00]} 6. Na3 {[%clk 0:02:59]}  cxd4 {[%clk 0:02:59]} 7. Nb5 {[%clk 0:02:58]}  Na6 {[%clk 0:02:58]} 8. Be3 {[%clk 0:02:54]}  Nf6 {[%clk 0:02:58]} 9. Bxd4 {[%clk 0:02:52]}  O-O {[%clk 0:02:58]} 10. Be2 {[%clk 0:02:49]}  Bg4 {[%clk 0:02:52]} 11. a4 {[%clk 0:02:47]}  Nc5 {[%clk 0:02:47]} 12. Nc7 {[%clk 0:02:42]}  Qe4 {[%clk 0:02:47]} 13. Bxc5 {[%clk 0:02:25]}  Rac8 {[%clk 0:02:41]} 14. O-O {[%clk 0:01:48]}  Rxc7 {[%clk 0:02:35]} 15. Bxa7 {[%clk 0:01:43]}  Rd7 {[%clk 0:02:34]} 16. Qe1 {[%clk 0:01:17]}  Qc2 {[%clk 0:02:32]} 17. Rb1 {[%clk 0:00:50]}  Qxa4 {[%clk 0:02:27]} 18. Bd4 {[%clk 0:00:43]}  Rc7 {[%clk 0:02:14]} 19. Ne5 {[%clk 0:00:37]}  Bf5 {[%clk 0:02:07]} 20. Ra1 {[%clk 0:00:36]}  Qb3 {[%clk 0:02:07]} 21. Qc1 {[%clk 0:00:33]}  Nd5 {[%clk 0:01:54]} 22. Ra3 {[%clk 0:00:32]}  Qc2 {[%clk 0:01:55]} 23. Qxc2 {[%clk 0:00:25]}  Bxc2 {[%clk 0:01:56]} 24. Bf3 {[%clk 0:00:20]}  Nf4 {[%clk 0:01:52]} 25. g3 {[%clk 0:00:13]}  Ne6 {[%clk 0:01:51]} 26. Re1 {[%clk 0:00:08]}  Nxd4 {[%clk 0:01:44]} 27. cxd4 {[%clk 0:00:09]}  Rd8 {[%clk 0:01:43]} 28. Rc3 {[%clk 0:00:09]}  Rdc8 {[%clk 0:01:41]} 29. Bxb7 {[%clk 0:00:05]}  Rxc3 {[%clk 0:01:38]} 30. bxc3 {[%clk 0:00:06]}  Rxc3 {[%clk 0:01:38]} 31. Nc6 {[%clk 0:00:06]}  e6 {[%clk 0:01:31]} 32. d5 {[%clk 0:00:06]}  exd5 {[%clk 0:01:30]} 33. Ne7+ {[%clk 0:00:06]}  Kf8 {[%clk 0:01:30]} 34. Nxd5 {[%clk 0:00:07]}  Rc5 {[%clk 0:01:23]} 35. Ne3 {[%clk 0:00:07]}  Bb3 {[%clk 0:01:18]} 36. Bf3 {[%clk 0:00:06]}  h5 {[%clk 0:01:16]} 37. Rb1 {[%clk 0:00:06]}  Be6 {[%clk 0:01:09]} 38. Kg2 {[%clk 0:00:05]}  Rc7 {[%clk 0:01:08]} 39. h4 {[%clk 0:00:04]}  Bd4 {[%clk 0:01:07]} 40. Re1 {[%clk 0:00:03]}  Ra7 {[%clk 0:01:03]} 41. Re2 {[%clk 0:00:04]}  Ra5 {[%clk 0:01:01]} 42. Nc2 {[%clk 0:00:04]}  Bc5 {[%clk 0:00:59]} 43. Ne3 {[%clk 0:00:04]}  Kg7 {[%clk 0:00:58]} 44. Nc2 {[%clk 0:00:04]}  Ra2 {[%clk 0:00:56]} 45. Ne1 {[%clk 0:00:03]}  Ra3 {[%clk 0:00:54]} 46. Rc2 {[%clk 0:00:02]}  Bb4 {[%clk 0:00:50]} 47. Rc1 {[%clk 0:00:03]}  Ra2 {[%clk 0:00:43]} 48. Nd3 {[%clk 0:00:02]}  Ba5 {[%clk 0:00:42]} 49. Rd1 {[%clk 0:00:01]}  Bf5 {[%clk 0:00:38]} 50. Nf4 {[%clk 0:00:01]}  Bb6 {[%clk 0:00:36]} 51. Rf1 {[%clk 0:00:01]}  Rd2 {[%clk 0:00:32]} 0-1


[Site "https://www.chess.com"]

[Event "Titled Tuesday Blitz April 25 Early 2023"]
[White "Rosenberg, Evan S"]
[Black "Mouhamad, Joachim"]
[WhiteFideId "2019299"]
[BlackFideId "656410"]
[WhiteElo "2321"]
[BlackElo "2125"]
[Result "1/2-1/2"]
[Round "11"]
[TimeControl "180+2"]
[Date "2023.04.25"]
[WhiteClock "0:01:12"]
[BlackClock "0:00:52"]

1. d4 {[%clk 0:03:00]}  d5 {[%clk 0:02:52]} 2. Nf3 {[%clk 0:03:00]}  e6 {[%clk 0:02:52]} 3. g3 {[%clk 0:03:00]}  Nf6 {[%clk 0:02:51]} 4. Bg2 {[%clk 0:03:01]}  b6 {[%clk 0:02:50]} 5. O-O {[%clk 0:03:01]}  Bb7 {[%clk 0:02:50]} 6. c4 {[%clk 0:03:01]}  dxc4 {[%clk 0:02:51]} 7. Nbd2 {[%clk 0:02:58]}  c5 {[%clk 0:02:44]} 8. Nxc4 {[%clk 0:02:56]}  cxd4 {[%clk 0:02:44]} 9. Qxd4 {[%clk 0:02:54]}  Qxd4 {[%clk 0:02:41]} 10. Nxd4 {[%clk 0:02:55]}  Bxg2 {[%clk 0:02:41]} 11. Kxg2 {[%clk 0:02:56]}  Bc5 {[%clk 0:02:25]} 12. Nb5 {[%clk 0:02:54]}  Na6 {[%clk 0:02:25]} 13. Ncd6+ {[%clk 0:02:52]}  Ke7 {[%clk 0:02:22]} 14. Nc4 {[%clk 0:02:28]}  Rhc8 {[%clk 0:02:08]} 15. b3 {[%clk 0:02:24]}  Nc7 {[%clk 0:02:00]} 16. Nxc7 {[%clk 0:02:20]}  Rxc7 {[%clk 0:02:00]} 17. Bf4 {[%clk 0:02:17]}  Rcc8 {[%clk 0:01:46]} 18. Rad1 {[%clk 0:02:16]}  Nd5 {[%clk 0:01:44]} 19. Be5 {[%clk 0:02:08]}  f6 {[%clk 0:01:43]} 20. Bb2 {[%clk 0:02:08]}  Rd8 {[%clk 0:01:38]} 21. a3 {[%clk 0:02:05]}  a5 {[%clk 0:01:33]} 22. e4 {[%clk 0:01:59]}  Nc7 {[%clk 0:01:30]} 23. b4 {[%clk 0:01:58]}  axb4 {[%clk 0:01:28]} 24. axb4 {[%clk 0:01:59]}  Bxb4 {[%clk 0:01:24]} 25. Nxb6 {[%clk 0:01:59]}  Ra2 {[%clk 0:01:09]} 26. Rxd8 {[%clk 0:01:58]}  Kxd8 {[%clk 0:01:10]} 27. Nc4 {[%clk 0:01:55]}  Ke7 {[%clk 0:00:55]} 28. Rd1 {[%clk 0:01:24]}  Bc5 {[%clk 0:00:55]} 29. Ra1 {[%clk 0:01:11]}  Rxa1 {[%clk 0:00:52]} 30. Bxa1 {[%clk 0:01:12]} 1/2-1/2


[Site "https://www.chess.com"]

[Event "Titled Tuesday Blitz April 25 Early 2023"]
[White "Korelskiy, Egor"]
[Black "Spata, German"]
[WhiteFideId "34329064"]
[BlackFideId "113026"]
[WhiteElo "2186"]
[BlackElo "2238"]
[Result "1/2-1/2"]
[Round "11"]
[TimeControl "180+2"]
[Date "2023.04.25"]
[WhiteClock "0:00:16"]
[BlackClock "0:00:08"]

1. e4 {[%clk 0:03:00]}  g6 {[%clk 0:03:00]} 2. d4 {[%clk 0:03:00]}  Bg7 {[%clk 0:02:54]} 3. Nc3 {[%clk 0:03:00]}  d6 {[%clk 0:02:54]} 4. Nge2 {[%clk 0:02:57]}  a6 {[%clk 0:02:54]} 5. a4 {[%clk 0:02:56]}  Nf6 {[%clk 0:02:49]} 6. h3 {[%clk 0:02:55]}  b6 {[%clk 0:02:48]} 7. g4 {[%clk 0:02:54]}  Bb7 {[%clk 0:02:48]} 8. Bg2 {[%clk 0:02:55]}  O-O {[%clk 0:02:45]} 9. O-O {[%clk 0:02:55]}  e5 {[%clk 0:02:41]} 10. Be3 {[%clk 0:02:53]}  Nc6 {[%clk 0:02:38]} 11. Qd2 {[%clk 0:02:51]}  Re8 {[%clk 0:02:38]} 12. Rad1 {[%clk 0:02:50]}  exd4 {[%clk 0:02:33]} 13. Nxd4 {[%clk 0:02:49]}  Nxd4 {[%clk 0:02:32]} 14. Bxd4 {[%clk 0:02:49]}  Nxe4 {[%clk 0:02:23]} 15. Bxe4 {[%clk 0:02:43]}  Bxe4 {[%clk 0:02:22]} 16. Bxg7 {[%clk 0:02:43]}  Kxg7 {[%clk 0:01:59]} 17. Qd4+ {[%clk 0:02:42]}  Qf6 {[%clk 0:01:58]} 18. Nxe4 {[%clk 0:02:42]}  Qxd4 {[%clk 0:01:57]} 19. Rxd4 {[%clk 0:02:43]}  c5 {[%clk 0:01:56]} 20. Rxd6 {[%clk 0:02:39]}  Rxe4 {[%clk 0:01:56]} 21. Rxb6 {[%clk 0:02:35]}  Rxa4 {[%clk 0:01:54]} 22. Rd1 {[%clk 0:02:35]}  Rb4 {[%clk 0:01:46]} 23. Rxb4 {[%clk 0:02:32]}  cxb4 {[%clk 0:01:47]} 24. Kf1 {[%clk 0:02:23]}  a5 {[%clk 0:01:46]} 25. b3 {[%clk 0:02:20]}  Rc8 {[%clk 0:01:46]} 26. Rd2 {[%clk 0:02:20]}  Rc3 {[%clk 0:01:46]} 27. Ke2 {[%clk 0:02:13]}  Rxh3 {[%clk 0:01:44]} 28. Rd5 {[%clk 0:02:12]}  Rc3 {[%clk 0:01:39]} 29. Kd2 {[%clk 0:02:12]}  Rf3 {[%clk 0:01:27]} 30. Ke2 {[%clk 0:02:11]}  Rf4 {[%clk 0:01:20]} 31. f3 {[%clk 0:02:08]}  f5 {[%clk 0:01:14]} 32. Ke3 {[%clk 0:02:04]}  g5 {[%clk 0:01:14]} 33. Rxa5 {[%clk 0:02:00]}  h6 {[%clk 0:00:56]} 34. Ra7+ {[%clk 0:02:00]}  Kg6 {[%clk 0:00:55]} 35. Ra6+ {[%clk 0:01:54]}  Kg7 {[%clk 0:00:55]} 36. Ra7+ {[%clk 0:01:45]}  Kf6 {[%clk 0:00:55]} 37. Ra6+ {[%clk 0:01:41]}  Ke5 {[%clk 0:00:55]} 38. Ra5+ {[%clk 0:01:18]}  Kd6 {[%clk 0:00:49]} 39. Ra6+ {[%clk 0:01:18]}  Ke7 {[%clk 0:00:40]} 40. gxf5 {[%clk 0:00:51]}  h5 {[%clk 0:00:39]} 41. Rh6 {[%clk 0:00:43]}  h4 {[%clk 0:00:39]} 42. Rg6 {[%clk 0:00:30]}  Rxf5 {[%clk 0:00:39]} 43. Ke4 {[%clk 0:00:29]}  Rc5 {[%clk 0:00:34]} 44. f4 {[%clk 0:00:17]}  gxf4 {[%clk 0:00:23]} 45. Kxf4 {[%clk 0:00:17]}  h3 {[%clk 0:00:12]} 46. Rh6 {[%clk 0:00:14]}  Rc3 {[%clk 0:00:11]} 47. Kg4 {[%clk 0:00:14]}  Rxc2 {[%clk 0:00:05]} 48. Rxh3 {[%clk 0:00:14]}  Rc3 {[%clk 0:00:06]} 49. Rh1 {[%clk 0:00:13]}  Rxb3 {[%clk 0:00:04]} 50. Kf4 {[%clk 0:00:14]}  Rd3 {[%clk 0:00:03]} 51. Ke4 {[%clk 0:00:14]}  Rd2 {[%clk 0:00:03]} 52. Rb1 {[%clk 0:00:14]}  Re2+ {[%clk 0:00:02]} 53. Kd3 {[%clk 0:00:13]}  Rh2 {[%clk 0:00:03]} 54. Rxb4 {[%clk 0:00:13]}  Kd6 {[%clk 0:00:03]} 55. Rd4+ {[%clk 0:00:13]}  Kc5 {[%clk 0:00:04]} 56. Rc4+ {[%clk 0:00:13]}  Kd5 {[%clk 0:00:04]} 57. Rd4+ {[%clk 0:00:14]}  Ke5 {[%clk 0:00:05]} 58. Re4+ {[%clk 0:00:15]}  Kf5 {[%clk 0:00:06]} 59. Re3 {[%clk 0:00:15]}  Rh1 {[%clk 0:00:06]} 60. Rf3+ {[%clk 0:00:14]}  Ke5 {[%clk 0:00:06]} 61. Re3+ {[%clk 0:00:15]}  Kd5 {[%clk 0:00:06]} 62. Ke2 {[%clk 0:00:16]}  Rh2+ {[%clk 0:00:06]} 63. Kd3 {[%clk 0:00:16]}  Rh1 {[%clk 0:00:06]} 64. Rf3 {[%clk 0:00:16]}  Ra1 {[%clk 0:00:06]} 65. Re3 {[%clk 0:00:16]}  Ra3+ {[%clk 0:00:06]} 66. Ke2 {[%clk 0:00:16]}  Ra2+ {[%clk 0:00:06]} 67. Kf3 {[%clk 0:00:16]}  Kd4 {[%clk 0:00:07]} 68. Re4+ {[%clk 0:00:17]}  Kd5 {[%clk 0:00:07]} 69. Re3 {[%clk 0:00:17]}  Rb2 {[%clk 0:00:07]} 70. Rd3+ {[%clk 0:00:17]}  Ke5 {[%clk 0:00:07]} 71. Re3+ {[%clk 0:00:18]}  Kf5 {[%clk 0:00:08]} 72. Rd3 {[%clk 0:00:18]}  Rh2 {[%clk 0:00:08]} 73. Rd5+ {[%clk 0:00:18]}  Ke6 {[%clk 0:00:08]} 74. Ra5 {[%clk 0:00:18]}  Rh3+ {[%clk 0:00:07]} 75. Ke4 {[%clk 0:00:18]}  Rb3 {[%clk 0:00:08]} 76. Ra6+ {[%clk 0:00:17]}  Kd7 {[%clk 0:00:09]} 77. Ra5 {[%clk 0:00:17]}  Kc6 {[%clk 0:00:09]} 78. Kd4 {[%clk 0:00:17]}  Rb5 {[%clk 0:00:07]} 79. Rxb5 {[%clk 0:00:16]}  Kxb5 {[%clk 0:00:08]} 1/2-1/2


[Site "https://www.chess.com"]

[Event "Titled Tuesday Blitz April 25 Early 2023"]
[White "Garcia Almaguer, Juan Manuel"]
[Black "Kozin, Yuri"]
[WhiteFideId "5110491"]
[BlackFideId "4129920"]
[WhiteElo "2117"]
[BlackElo "2603"]
[Result "0-1"]
[Round "11"]
[TimeControl "180+2"]
[Date "2023.04.25"]
[WhiteClock "0:00:56"]
[BlackClock "0:00:33"]

1. e4 {[%clk 0:03:00]}  c5 {[%clk 0:02:59]} 2. Nf3 {[%clk 0:02:58]}  e6 {[%clk 0:03:00]} 3. d4 {[%clk 0:02:58]}  cxd4 {[%clk 0:03:01]} 4. Nxd4 {[%clk 0:02:59]}  Nf6 {[%clk 0:03:01]} 5. Nc3 {[%clk 0:02:59]}  d6 {[%clk 0:03:02]} 6. Be2 {[%clk 0:02:58]}  Be7 {[%clk 0:03:02]} 7. Be3 {[%clk 0:02:59]}  O-O {[%clk 0:03:01]} 8. Qd2 {[%clk 0:02:59]}  a6 {[%clk 0:02:59]} 9. a4 {[%clk 0:02:56]}  Nc6 {[%clk 0:02:57]} 10. g4 {[%clk 0:02:48]}  Qc7 {[%clk 0:02:52]} 11. g5 {[%clk 0:02:46]}  Nd7 {[%clk 0:02:52]} 12. f4 {[%clk 0:02:41]}  Na5 {[%clk 0:02:51]} 13. h4 {[%clk 0:02:35]}  Nc4 {[%clk 0:02:50]} 14. Bxc4 {[%clk 0:02:35]}  Qxc4 {[%clk 0:02:50]} 15. h5 {[%clk 0:02:22]}  Nc5 {[%clk 0:02:12]} 16. b3 {[%clk 0:02:11]}  Qb4 {[%clk 0:02:12]} 17. O-O {[%clk 0:02:10]}  Re8 {[%clk 0:01:52]} 18. Rae1 {[%clk 0:01:40]}  e5 {[%clk 0:01:44]} 19. Nf5 {[%clk 0:01:35]}  Nxe4 {[%clk 0:01:24]} 20. Nxe7+ {[%clk 0:01:32]}  Rxe7 {[%clk 0:01:23]} 21. Nxe4 {[%clk 0:01:27]}  Qxe4 {[%clk 0:01:23]} 22. Qxd6 {[%clk 0:01:24]}  Bh3 {[%clk 0:01:19]} 23. Rf2 {[%clk 0:01:18]}  exf4 {[%clk 0:01:13]} 24. Qxf4 {[%clk 0:01:17]}  Rae8 {[%clk 0:01:08]} 25. Kh2 {[%clk 0:01:11]}  Qxf4+ {[%clk 0:01:05]} 26. Bxf4 {[%clk 0:01:06]}  Rxe1 {[%clk 0:01:03]} 27. Kxh3 {[%clk 0:01:06]}  R1e2 {[%clk 0:01:02]} 28. Rf3 {[%clk 0:01:05]}  Rxc2 {[%clk 0:01:01]} 29. h6 {[%clk 0:01:05]}  Rec8 {[%clk 0:00:52]} 30. Be5 {[%clk 0:01:03]}  g6 {[%clk 0:00:41]} 31. Rd3 {[%clk 0:01:00]}  Re2 {[%clk 0:00:38]} 32. Bf6 {[%clk 0:00:59]}  Rce8 {[%clk 0:00:36]} 33. Kg4 {[%clk 0:00:56]}  R2e3 {[%clk 0:00:33]} 0-1


[Site "https://www.chess.com"]

[Event "Titled Tuesday Blitz April 25 Early 2023"]
[White "Ordekalog"]
[Black "Lenaerts, Lennert"]
[BlackFideId "211435"]
[WhiteElo "2483"]
[BlackElo "2334"]
[Result "1-0"]
[Round "11"]
[TimeControl "180+2"]
[Date "2023.04.25"]
[WhiteClock "0:00:05"]
[BlackClock "0:00:16"]

1. e4 {[%clk 0:03:00]}  e5 {[%clk 0:02:58]} 2. Nf3 {[%clk 0:03:00]}  Nc6 {[%clk 0:02:58]} 3. Bb5 {[%clk 0:02:59]}  g6 {[%clk 0:02:58]} 4. Bxc6 {[%clk 0:02:55]}  dxc6 {[%clk 0:02:58]} 5. O-O {[%clk 0:02:52]}  Bg7 {[%clk 0:02:57]} 6. d3 {[%clk 0:02:51]}  c5 {[%clk 0:02:53]} 7. Na3 {[%clk 0:02:50]}  Ne7 {[%clk 0:02:52]} 8. Nc4 {[%clk 0:02:49]}  Nc6 {[%clk 0:02:52]} 9. Be3 {[%clk 0:02:48]}  b6 {[%clk 0:02:52]} 10. Qd2 {[%clk 0:02:47]}  O-O {[%clk 0:02:52]} 11. Bh6 {[%clk 0:02:46]}  f6 {[%clk 0:02:52]} 12. Bxg7 {[%clk 0:02:46]}  Kxg7 {[%clk 0:02:53]} 13. c3 {[%clk 0:02:37]}  Be6 {[%clk 0:02:53]} 14. Qe3 {[%clk 0:02:35]}  Qd7 {[%clk 0:02:49]} 15. Nfd2 {[%clk 0:02:32]}  Rad8 {[%clk 0:02:49]} 16. f4 {[%clk 0:02:11]}  Qxd3 {[%clk 0:02:49]} 17. Qxd3 {[%clk 0:02:10]}  Rxd3 {[%clk 0:02:50]} 18. fxe5 {[%clk 0:02:10]}  Nxe5 {[%clk 0:02:41]} 19. Nxe5 {[%clk 0:01:56]}  fxe5 {[%clk 0:02:42]} 20. Rxf8 {[%clk 0:01:52]}  Kxf8 {[%clk 0:02:43]} 21. Nf3 {[%clk 0:01:52]}  Kg7 {[%clk 0:02:31]} 22. Re1 {[%clk 0:01:24]}  a5 {[%clk 0:02:24]} 23. a3 {[%clk 0:01:19]}  Kf6 {[%clk 0:02:21]} 24. Kf2 {[%clk 0:01:19]}  Bg4 {[%clk 0:02:18]} 25. Ke2 {[%clk 0:01:13]}  c4 {[%clk 0:02:14]} 26. h3 {[%clk 0:00:54]}  Bxf3+ {[%clk 0:02:13]} 27. gxf3 {[%clk 0:00:54]}  g5 {[%clk 0:02:04]} 28. Rh1 {[%clk 0:00:46]}  h5 {[%clk 0:02:04]} 29. h4 {[%clk 0:00:45]}  g4 {[%clk 0:02:03]} 30. fxg4 {[%clk 0:00:44]}  hxg4 {[%clk 0:02:04]} 31. h5 {[%clk 0:00:45]}  Rh3 {[%clk 0:01:43]} 32. Rf1+ {[%clk 0:00:32]}  Ke6 {[%clk 0:01:42]} 33. Rf5 {[%clk 0:00:31]}  Rh2+ {[%clk 0:01:42]} 34. Kf1 {[%clk 0:00:26]}  Rxb2 {[%clk 0:01:41]} 35. Kg1 {[%clk 0:00:25]}  Rc2 {[%clk 0:01:38]} 36. h6 {[%clk 0:00:19]}  Rxc3 {[%clk 0:01:31]} 37. Rh5 {[%clk 0:00:18]}  Rd3 {[%clk 0:01:22]} 38. h7 {[%clk 0:00:18]}  Rd8 {[%clk 0:01:22]} 39. h8=Q {[%clk 0:00:17]}  Rxh8 {[%clk 0:01:23]} 40. Rxh8 {[%clk 0:00:17]}  c3 {[%clk 0:01:22]} 41. Rh6+ {[%clk 0:00:12]}  Kd7 {[%clk 0:01:22]} 42. Kf2 {[%clk 0:00:11]}  b5 {[%clk 0:01:21]} 43. Ke3 {[%clk 0:00:11]}  c5 {[%clk 0:01:13]} 44. Kd3 {[%clk 0:00:09]}  b4 {[%clk 0:01:13]} 45. Rg6 {[%clk 0:00:06]}  a4 {[%clk 0:01:11]} 46. Kc2 {[%clk 0:00:04]}  Kc7 {[%clk 0:01:07]} 47. Rxg4 {[%clk 0:00:04]}  Kc6 {[%clk 0:01:08]} 48. Rg5 {[%clk 0:00:02]}  Kb5 {[%clk 0:01:08]} 49. Rxe5 {[%clk 0:00:03]}  Kc4 {[%clk 0:01:09]} 50. Re8 {[%clk 0:00:02]}  b3+ {[%clk 0:01:08]} 51. Kc1 {[%clk 0:00:03]}  c2 {[%clk 0:01:06]} 52. Rc8 {[%clk 0:00:03]}  Kd4 {[%clk 0:01:05]} 53. Rc7 {[%clk 0:00:02]}  c4 {[%clk 0:01:04]} 54. Kb2 {[%clk 0:00:03]}  Kd3 {[%clk 0:00:17]} 55. e5 {[%clk 0:00:04]}  c1=Q+ {[%clk 0:00:17]} 56. Kxc1 {[%clk 0:00:03]}  c3 {[%clk 0:00:18]} 57. Rd7+ {[%clk 0:00:04]}  Kc4 {[%clk 0:00:18]} 58. e6 {[%clk 0:00:05]}  b2+ {[%clk 0:00:16]} 59. Kc2 {[%clk 0:00:05]} 1-0


[Site "https://www.chess.com"]